[Event "81st Tata Steel Tienkamp 2019"]
[Site "Wijk aan Zee"]
[Date "2019.01.25"]
[Round "7"]
[White "Vrolijk, Liam"]
[Black "Kosakowski, Jakub"]
[Result "1-0"]
[ECO "D71"]
[WhiteElo "2433"]
[BlackElo "2404"]
[Annotator "NA"]
[PlyCount "59"]
[EventDate "2019.01.12"]
[EventType "tourn"]
[EventCountry "NED"]
[SourceTitle "playchess.com"]
[Source "ChessBase"]
[SourceQuality "1"]
[TimeControl "40/6000+30:20/3000+30:900+30"]

1. c4 {[%emt 0:00:00]} Nf6 {[%emt 0:00:00]} 2. g3 {[%emt 0:00:00]} g6 {[%emt 0:01:17]} 3. Bg2 {[%emt 0:00:00]} Bg7 {[%emt 0:02:42]} 4. d4 {[%emt 0:00:28]} d5 {[%emt 0:00:17]} 5. cxd5 {[%emt 0:00:08]} Nxd5 {[%emt 0:00:06]} 6. Nf3 {[%emt 0:00:09]} Nb6 {[%emt 0:00:08]} 7. Nc3 {[%emt 0:00:08]} Nc6 {[%emt 0:00:06]} 8. e3 {[%emt 0:00:05]} O-O {[%emt 0:00:08]} 9. O-O {[%emt 0:00:08]} Re8 {[%emt 0:00:13]} 10. h3 {[%emt 0:00:29]} e5 {[%emt 0:04:22]} 11. d5 {[%emt 0:00:15] D76: Fianchetto Grünfeld: Main Line with 7...Nb6} Na5 {[%emt 0:00:18]} 12. Qc2 {[%emt 0:00:29]} e4 {[%emt 0:18:54]} ({But not} 12... Nxd5 $2 13. Rd1 $18) 13. Nxe4 $146 {[%emt 0:06:06]} ({Predecessor:} 13. Nd4 Bxd4 14. exd4 f5 15. Bh6 Nac4 16. f3 e3 17. b3 Nd6 18. Rae1 Nf7 19. Bxe3 Nxd5 20. Nxd5 Qxd5 21. Qxc7 {1-0 (26) Markus,R (2673)-Plenkovic,Z (2413) Mali Losinj 2017}) 13... Qxd5 {[%emt 0:04:50]} 14. Nd4 $1 {[%emt 0:04:44]} Qe5 {[%emt 0:07:23]} 15. Nc5 {[%emt 0:24:10]} Qe7 {[%emt 0:21:59] [#]} 16. b3 $1 {[%emt 0:12:38]} Nc6 {[%emt 0:00:31]} 17. Nxc6 {[%emt 0:03:39]} bxc6 {[%emt 0:02:14]} 18. Rb1 {[%emt 0:00:07]} Nd5 {[%emt 0:18:17]} 19. Bd2 {[%emt 0:02:25]} a5 {[%emt 0:00:38]} 20. a3 $14 {[%emt 0:00:31]} Bf5 {[%emt 0:09:13]} 21. e4 {[%emt 0:04:49]} Bd4 {[%emt 0:00:21]} 22. b4 {[%emt 0:06:32]} axb4 {[%emt 0:00:18]} 23. axb4 {[%emt 0:00:06]} Bxc5 {[%emt 0:02:39]} 24. exf5 {[%emt 0:01:01]} Bd6 {[%emt 0:07:23]} 25. b5 {[%emt 0:06:34]} Bc5 {[%emt 0:04:44]} 26. bxc6 {[%emt 0:02:55]} Nb6 {[%emt 0:00:13]} 27. Rfe1 {[%emt 0:02:36]} Qf8 {[%emt 0:00:08]} 28. Bf4 {[%emt 0:00:32]} Re7 {[%emt 0:00:44]} 29. Rxe7 {[%emt 0:00:45]} Qxe7 {[%emt 0:00:16]} 30. f6 {[%emt 0:00:11]} 1-0

[Event "81st Tata Steel Tienkamp 2019"]
[Site "Wijk aan Zee"]
[Date "2019.01.25"]
[Round "7"]
[White "Mamedjarova, Zeinab"]
[Black "Brink, Barry"]
[Result "1/2-1/2"]
[ECO "D04"]
[WhiteElo "2311"]
[BlackElo "2385"]
[Annotator "NA"]
[PlyCount "74"]
[EventDate "2019.01.12"]
[EventType "tourn"]
[EventCountry "NED"]
[SourceTitle "playchess.com"]
[Source "ChessBase"]
[SourceQuality "1"]
[TimeControl "40/6000+30:20/3000+30:900+30"]

1. d4 {[%emt 0:00:00]} Nf6 {[%emt 0:00:00]} 2. Nf3 {[%emt 0:00:00]} d5 {[%emt 0:00:04]} 3. e3 {[%emt 0:00:42]} c5 {[%emt 0:00:37]} 4. c4 {[%emt 0:03:28]} cxd4 {[%emt 0:02:11]} 5. exd4 {[%emt 0:00:39]} g6 {[%emt 0:00:18]} 6. Nc3 {[%emt 0:02:03]} Bg7 {[%emt 0:00:58]} 7. Bg5 {[%emt 0:00:48]} Ne4 {[%emt 0:16:21]} 8. Bf4 {[%emt 0:00:37]} ({But not} 8. Nxd5 $2 Nxg5 9. Nxg5 e6 $19) 8... Nxc3 {[%emt 0:03:43]} 9. bxc3 {[%emt 0:01:34]} O-O {[%emt 0:00:34]} 10. Rb1 {[%emt 0:13:15]} Nc6 {[%emt 0:09:49]} 11. Rb5 {[%emt 0:07:28]} dxc4 {[%emt 0:16:56]} 12. Bxc4 {[%emt 0:00:04]} a6 {[%emt 0:11:38]} 13. Rc5 {[%emt 0:10:44]} Bd7 {[%emt 0:08:11]} 14. h4 {[%emt 0:07:32]} Rc8 {[%emt 0:04:04]} 15. Bd3 $17 {[%emt 0:13:50]} Na5 {[%emt 0:11:11]} 16. Rxc8 {[%emt 0:04:59]} Qxc8 {[%emt 0:00:16]} 17. Qd2 {[%emt 0:01:23]} Nc4 {[%emt 0:01:49]} 18. Qe2 {[%emt 0:00:34]} Nd6 {[%emt 0:01:05]} 19. O-O {[%emt 0:02:11]} Bf5 {[%emt 0:04:06]} 20. Bxd6 {[%emt 0:09:28]} exd6 {[%emt 0:01:10]} 21. Bxf5 {[%emt 0:00:35]} Qxf5 {[%emt 0:00:06]} 22. c4 {[%emt 0:02:09]} Bf6 {[%emt 0:01:46]} 23. Qb2 {[%emt 0:04:50]} b5 {[%emt 0:01:46]} 24. cxb5 {[%emt 0:01:07]} axb5 {[%emt 0:00:29]} 25. Rb1 {[%emt 0:01:52]} Rc8 {[%emt 0:03:06]} 26. Rc1 {[%emt 0:01:37]} Rc4 {[%emt 0:04:14]} 27. a3 {[%emt 0:07:24]} Qd3 {[%emt 0:02:04]} 28. Rb1 {[%emt 0:08:42]} Kg7 {[%emt 0:01:26]} 29. Qa1 {[%emt 0:00:24]} Rc3 {[%emt 0:02:15]} 30. Qb2 {[%emt 0:00:11]} Bxd4 {[%emt 0:01:14]} 31. Nxd4 {[%emt 0:00:41]} Qxd4 {[%emt 0:00:09]} 32. Qa1 {[%emt 0:01:13]} Qd2 {[%emt 0:01:42]} 33. Rd1 {[%emt 0:01:16]} Qc2 {[%emt 0:00:32]} 34. Rxd6 {[%emt 0:00:37]} Qc1+ {[%emt 0:00:29]} 35. Qxc1 {[%emt 0:00:04]} Rxc1+ {[%emt 0:00:04]} 36. Kh2 {[%emt 0:00:02]} Rc3 {[%emt 0:00:31]} 37. Rb6 {[%emt 0:00:09]} Rxa3 {[%emt 0:00:13]} 1/2-1/2

[Event "81st Tata Steel Tienkamp 2019"]
[Site "Wijk aan Zee"]
[Date "2019.01.26"]
[Round "8"]
[White "Beukema, Stefan"]
[Black "Vrolijk, Liam"]
[Result "0-1"]
[ECO "B33"]
[WhiteElo "2414"]
[BlackElo "2433"]
[Annotator "NA"]
[PlyCount "108"]
[EventDate "2019.01.12"]
[EventType "tourn"]
[EventCountry "NED"]
[SourceTitle "playchess.com"]
[Source "ChessBase"]
[SourceQuality "1"]
[TimeControl "40/6000+30:20/3000+30:900+30"]

1. e4 {[%emt 0:00:00]} c5 {[%emt 0:00:00]} 2. Nf3 {[%emt 0:00:00]} Nc6 {[%emt 0:00:00]} 3. d4 {[%emt 0:00:45]} cxd4 {[%emt 0:00:00]} 4. Nxd4 {[%emt 0:00:04]} Nf6 {[%emt 0:00:00]} 5. Nc3 {[%emt 0:00:05]} e5 {[%emt 0:00:05]} 6. Ndb5 {[%emt 0:00:25]} d6 {[%emt 0:00:08]} 7. Bg5 {[%emt 0:02:50]} a6 {[%emt 0:00:37]} 8. Na3 {[%emt 0:02:21]} b5 {[%emt 0:00:08]} 9. Nd5 {[%emt 0:00:05]} Be7 {[%emt 0:00:19]} 10. Bxf6 {[%emt 0:00:14]} Bxf6 {[%emt 0:00:08]} 11. c4 {[%emt 0:00:04]} b4 {[%emt 0:00:52] B33: Sicilian: Pelikan and Sveshnikov Variations} 12. Nc2 {[%emt 0:00:04]} O-O {[%emt 0:01:26]} (12... a5 13. g3 {½-½ (13) Nepomniachtchi,I (2763)-Carlsen,M (2835) St Petersburg 2018}) 13. Be2 {[%emt 0:05:07]} a5 {[%emt 0:01:27]} 14. O-O {[%emt 0:00:42]} Bg5 {[%emt 0:01:57] LiveBook: 202 Games} 15. Bf3 {[%emt 0:01:30]} Be6 {[%emt 0:05:45]} 16. Qd3 {[%emt 0:01:17]} Qb8 {[%emt 0:06:03]} 17. b3 {[%emt 0:01:26]} Bd8 $146 {[%emt 0:06:25]} ({Predecessor:} 17... Qa7 18. a3 Qb7 19. g3 {1-0 (69) Priyadharshan,K (2462)-Nguyen,D (2487) Mumbai 2015}) 18. a3 {[%emt 0:04:01]} bxa3 {[%emt 0:05:26]} 19. Rxa3 {[%emt 0:00:06]} Bb6 {[%emt 0:01:56]} 20. b4 {[%emt 0:03:35]} (20. Nxb6 $11 {keeps the balance.} Qxb6 21. Rfa1 (21. Qxd6 $2 Rfd8 $19)) 20... Bxd5 $1 {[%emt 0:04:33]} 21. Qxd5 {[%emt 0:04:36]} (21. bxa5 $17 Bxc4 22. Qxc4) 21... axb4 {[%emt 0:09:39]} 22. Rxa8 {[%emt 0:01:26]} Qxa8 {[%emt 0:00:08]} 23. Ra1 {[%emt 0:00:03]} Qc8 {[%emt 0:04:44]} 24. Qb5 {[%emt 0:00:24]} Bc5 {[%emt 0:01:17]} 25. h3 $19 {[%emt 0:02:36]} Na7 {[%emt 0:04:32]} 26. Qa4 {[%emt 0:01:18]} Nc6 {[%emt 0:01:02]} 27. Qb5 {[%emt 0:00:04]} Nd4 {[%emt 0:12:37]} 28. Nxd4 {[%emt 0:00:12]} Bxd4 {[%emt 0:00:09]} 29. Ra6 {[%emt 0:09:22]} Bc5 {[%emt 0:01:34]} 30. Bd1 {[%emt 0:00:36]} Qd8 {[%emt 0:04:43]} 31. Qc6 {[%emt 0:02:25]} Qh4 {[%emt 0:07:06]} 32. Ra2 {[%emt 0:00:04]} g6 {[%emt 0:02:41]} 33. Bb3 {[%emt 0:01:47]} Kg7 {[%emt 0:02:58]} 34. Bd1 {[%emt 0:02:39]} Qf4 {[%emt 0:03:46]} 35. Qd5 {[%emt 0:00:42]} Bd4 {[%emt 0:01:32]} 36. Bb3 {[%emt 0:01:10]} Qc1+ {[%emt 0:01:26]} 37. Kh2 {[%emt 0:00:04]} Qc3 {[%emt 0:00:56]} 38. c5 {[%emt 0:01:26]} Qxc5 {[%emt 0:00:47]} 39. Ra6 {[%emt 0:00:45]} Qxd5 {[%emt 0:03:38]} 40. Bxd5 {[%emt 0:00:05]} Rb8 {[%emt 0:01:08]} 41. Ra8 {[%emt 0:51:36]} Rxa8 {[%emt 0:51:33]} 42. Bxa8 {[%emt 0:00:05]} b3 {[%emt 0:00:48]} 43. Bd5 {[%emt 0:00:04]} b2 {[%emt 0:00:05]} 44. Ba2 {[%emt 0:00:02]} Bxf2 {[%emt 0:00:08]} 45. g4 {[%emt 0:00:36]} Kf6 {[%emt 0:00:42]} 46. Kg2 {[%emt 0:00:05]} Bc5 {[%emt 0:01:10]} 47. Kf3 {[%emt 0:00:05]} Kg5 {[%emt 0:00:12]} 48. Kg3 {[%emt 0:00:55]} h5 {[%emt 0:01:12]} 49. Bb1 {[%emt 0:00:07]} hxg4 {[%emt 0:00:15]} 50. hxg4 {[%emt 0:00:05]} d5 {[%emt 0:00:15]} 51. exd5 {[%emt 0:00:39]} f5 {[%emt 0:00:07]} 52. gxf5 {[%emt 0:00:09]} gxf5 {[%emt 0:00:08]} 53. Kf3 {[%emt 0:00:13]} e4+ {[%emt 0:00:13]} 54. Ke2 {[%emt 0:00:04]} Kf6 {[%emt 0:00:22]} 0-1

[Event "81st Tata Steel Tienkamp 2019"]
[Site "Wijk aan Zee"]
[Date "2019.01.26"]
[Round "8"]
[White "Kosakowski, Jakub"]
[Black "Martens, Martin"]
[Result "1-0"]
[ECO "B27"]
[WhiteElo "2404"]
[BlackElo "2382"]
[Annotator "NA"]
[PlyCount "71"]
[EventDate "2019.01.12"]
[EventType "tourn"]
[EventCountry "NED"]
[SourceTitle "playchess.com"]
[Source "ChessBase"]
[SourceQuality "1"]
[TimeControl "40/6000+30:20/3000+30:900+30"]

1. e4 {[%emt 0:00:00]} c5 {[%emt 0:00:00]} 2. Nf3 {[%emt 0:00:05]} g6 {[%emt 0:00:00]} 3. d4 {[%emt 0:00:45]} cxd4 {[%emt 0:00:00]} 4. Qxd4 {[%emt 0:00:10]} Nf6 {[%emt 0:00:10]} 5. Nc3 {[%emt 0:00:51]} Nc6 {[%emt 0:00:19]} 6. Qa4 {[%emt 0:00:11]} d6 {[%emt 0:00:22]} 7. e5 {[%emt 0:01:50]} dxe5 {[%emt 0:00:18]} 8. Nxe5 {[%emt 0:00:10]} Bd7 {[%emt 0:00:23]} 9. Nxd7 {[%emt 0:00:18]} Nxd7 {[%emt 0:00:10]} 10. Be3 {[%emt 0:05:51]} Bg7 {[%emt 0:04:24]} 11. Rd1 {[%emt 0:03:47]} a6 {[%emt 0:09:39]} 12. Be2 {[%emt 0:02:59]} Qa5 {[%emt 0:11:36]} 13. Qxa5 {[%emt 0:04:25]} Nxa5 {[%emt 0:00:34]} 14. Nd5 {[%emt 0:00:50]} Rc8 {[%emt 0:02:54]} 15. c3 {[%emt 0:01:36]} ({Better is} 15. Nb6 $16 Nxb6 16. Bxb6) 15... Nc4 {[%emt 0:05:45]} 16. Bxc4 {[%emt 0:01:40]} Rxc4 {[%emt 0:02:17]} 17. Ke2 {[%emt 0:01:24]} Be5 $14 {[%emt 0:20:57]} 18. Rd2 {[%emt 0:07:53]} e6 {[%emt 0:01:05]} 19. Nb4 {[%emt 0:04:48]} Ke7 {[%emt 0:06:20]} 20. Rhd1 {[%emt 0:00:32]} Rc7 {[%emt 0:01:29]} 21. Bg5+ {[%emt 0:17:24]} f6 22. Be3 {[%emt 0:02:55]} g5 {[%emt 0:05:44]} 23. g3 {[%emt 0:03:49]} g4 {[%emt 0:02:55]} 24. Nd3 {[%emt 0:00:15]} Bd6 {[%emt 0:01:28]} 25. Ne1 {[%emt 0:02:01]} Be5 {[%emt 0:13:35]} 26. f4 {[%emt 0:00:49]} gxf3+ {[%emt 0:00:15]} 27. Nxf3 {[%emt 0:00:06]} b5 {[%emt 0:01:28]} 28. g4 {[%emt 0:09:25]} h6 {[%emt 0:05:00]} 29. h3 {[%emt 0:00:55]} Rb7 {[%emt 0:04:52]} 30. Nxe5 {[%emt 0:02:29]} Nxe5 {[%emt 0:00:18]} 31. Rd6 {[%emt 0:01:36]} h5 {[%emt 0:05:15]} 32. g5 {[%emt 0:00:32]} Rg8 {[%emt 0:01:00]} 33. Rxa6 {[%emt 0:01:05]} fxg5 {[%emt 0:00:54]} 34. Bc5+ {[%emt 0:00:07]} Kf6 {[%emt 0:02:05]} 35. Rf1+ {[%emt 0:00:08]} Kg7 {[%emt 0:00:14]} 36. Bd4 {[%emt 0:00:07]} 1-0

[Event "81st Tata Steel Tienkamp 2019"]
[Site "Wijk aan Zee"]
[Date "2019.01.26"]
[Round "8"]
[White "Brink, Barry"]
[Black "Rapport, Jovana"]
[Result "1/2-1/2"]
[ECO "E00"]
[WhiteElo "2385"]
[BlackElo "2375"]
[Annotator "NA"]
[PlyCount "109"]
[EventDate "2019.01.12"]
[EventType "tourn"]
[EventCountry "NED"]
[SourceTitle "playchess.com"]
[Source "ChessBase"]
[SourceQuality "1"]
[TimeControl "40/6000+30:20/3000+30:900+30"]

1. d4 {[%emt 0:00:00]} e6 {[%emt 0:00:00]} 2. c4 {[%emt 0:00:00]} Bb4+ {[%emt 0:00:00]} 3. Bd2 {[%emt 0:00:00]} c5 {[%emt 0:00:00]} 4. Bxb4 {[%emt 0:02:40]} cxb4 {[%emt 0:00:03]} 5. a3 {[%emt 0:08:18]} bxa3 {[%emt 0:04:38]} 6. Rxa3 {[%emt 0:00:38]} Nf6 {[%emt 0:00:14]} 7. Nc3 {[%emt 0:02:53]} d5 {[%emt 0:09:55]} 8. e3 {[%emt 0:02:56]} O-O {[%emt 0:04:44]} 9. Nf3 {[%emt 0:01:46]} b6 {[%emt 0:03:45]} 10. cxd5 {[%emt 0:01:23]} Nxd5 {[%emt 0:00:09]} 11. Bd3 {[%emt 0:01:28]} Bb7 {[%emt 0:01:07]} 12. O-O $11 {[%emt 0:07:38]} Nb4 {[%emt 0:04:04]} 13. Be4 {[%emt 0:03:05]} Bxe4 {[%emt 0:17:10]} 14. Nxe4 {[%emt 0:00:54]} a5 {[%emt 0:02:36]} 15. Ne5 {[%emt 0:03:52]} f6 {[%emt 0:08:27]} 16. Nd3 {[%emt 0:08:00]} N8c6 {[%emt 0:00:26]} 17. Nf4 {[%emt 0:02:59]} Re8 {[%emt 0:04:26]} 18. Qf3 {[%emt 0:12:06]} Qe7 {[%emt 0:06:40]} 19. Ng3 {[%emt 0:06:16]} Na7 {[%emt 0:03:43]} 20. h4 {[%emt 0:08:03]} Nb5 {[%emt 0:00:32]} 21. Raa1 {[%emt 0:00:10]} Nd6 {[%emt 0:03:10]} 22. Rac1 {[%emt 0:03:36]} Qf7 {[%emt 0:01:16]} 23. Rfd1 {[%emt 0:01:39]} Rad8 {[%emt 0:01:17]} 24. d5 {[%emt 0:02:14]} exd5 {[%emt 0:08:57]} 25. Nxd5 {[%emt 0:01:35]} Nxd5 {[%emt 0:00:29]} 26. Rxd5 {[%emt 0:01:24]} Nb7 {[%emt 0:05:34]} 27. Rb5 {[%emt 0:02:40]} Re6 {[%emt 0:03:29]} 28. Nf5 {[%emt 0:04:24]} Nc5 {[%emt 0:03:45]} 29. Rc4 {[%emt 0:11:22]} Qe8 {[%emt 0:01:44]} 30. Rd4 {[%emt 0:06:37]} g6 {[%emt 0:03:12]} 31. Rxd8 {[%emt 0:00:55]} Qxd8 {[%emt 0:00:01]} 32. Nd4 {[%emt 0:00:19]} Rd6 {[%emt 0:01:28]} 33. b4 {[%emt 0:00:23]} axb4 {[%emt 0:05:04]} 34. Rxb4 {[%emt 0:00:05]} Kf7 {[%emt 0:01:06]} 35. Rb1 {[%emt 0:01:20]} Qe8 {[%emt 0:00:45]} 36. Ra1 {[%emt 0:00:43]} Ne6 {[%emt 0:01:14]} 37. Nxe6 {[%emt 0:03:30]} Qxe6 {[%emt 0:00:01]} 38. h5 {[%emt 0:00:21]} Rd7 {[%emt 0:00:35]} 39. h6 {[%emt 0:00:42]} Qe5 {[%emt 0:01:59]} 40. Qa8 {[%emt 0:00:30]} Qe8 {[%emt 0:01:41]} 41. Qf3 {[%emt 0:14:59]} Qe5 {[%emt 0:13:05]} 42. Rb1 {[%emt 0:03:38]} Qf5 {[%emt 0:06:36]} 43. Qxf5 {[%emt 0:01:14]} gxf5 {[%emt 0:00:13]} 44. Rxb6 {[%emt 0:00:13]} Kg6 {[%emt 0:01:09]} 45. Kh2 {[%emt 0:01:26]} Ra7 {[%emt 0:07:49]} 46. Kg3 {[%emt 0:04:37]} Ra4 {[%emt 0:00:24]} 47. f3 {[%emt 0:01:25]} Ra3 {[%emt 0:01:47]} 48. Kf4 {[%emt 0:01:30]} Ra4+ {[%emt 0:00:43]} 49. e4 {[%emt 0:03:18]} fxe4 {[%emt 0:00:05]} 50. fxe4 {[%emt 0:00:05]} Ra1 {[%emt 0:01:27]} 51. Ke3 {[%emt 0:05:52]} Rh1 {[%emt 0:01:08]} 52. g4 {[%emt 0:02:45]} Kg5 {[%emt 0:00:51]} 53. Rb7 {[%emt 0:05:06]} Rh3+ {[%emt 0:00:45]} 54. Kf2 {[%emt 0:01:00]} Kxh6 {[%emt 0:03:20]} 55. Rb5 {[%emt 0:00:35]} 1/2-1/2

[Event "81st Tata Steel Tienkamp 2019"]
[Site "Wijk aan Zee"]
[Date "2019.01.26"]
[Round "8"]
[White "Mamedjarova, Zeinab"]
[Black "Beerdsen, Thomas"]
[Result "0-1"]
[ECO "A80"]
[WhiteElo "2311"]
[BlackElo "2484"]
[Annotator "ChessBase"]
[PlyCount "122"]
[EventDate "2019.01.12"]
[EventType "tourn"]
[EventCountry "NED"]
[SourceTitle "playchess.com"]
[Source "ChessBase"]
[SourceQuality "1"]
[TimeControl "40/6000+30:20/3000+30:900+30"]

1. d4 {[%emt 0:00:13]} f5 {[%emt 0:00:00]} 2. Nc3 {[%emt 0:04:54]} Nf6 {[%emt 0:00:00]} 3. Bg5 {[%emt 0:00:07]} d5 {[%emt 0:00:07]} 4. Bxf6 {[%emt 0:01:32]} exf6 {[%emt 0:00:30]} 5. e3 {[%emt 0:01:30]} Be6 {[%emt 0:00:05]} 6. Bd3 {[%emt 0:00:38]} Nc6 {[%emt 0:00:09]} 7. Nge2 {[%emt 0:03:03]} Qd7 {[%emt 0:03:37]} 8. Nf4 {[%emt 0:06:09]} Bf7 {[%emt 0:01:36]} 9. h4 {[%emt 0:03:30]} O-O-O {[%emt 0:02:15]} 10. h5 {[%emt 0:12:24]} Bb4 {[%emt 0:05:00]} 11. Qf3 {[%emt 0:02:44]} g5 {[%emt 0:08:51]} 12. Nfe2 {[%emt 0:09:43]} Be6 {[%emt 0:02:28]} 13. h6 {[%emt 0:04:23]} Rhe8 {[%emt 0:11:43]} 14. g3 {[%emt 0:08:09]} a6 {[%emt 0:02:30]} 15. O-O-O {[%emt 0:00:55]} Ne7 {[%emt 0:03:29]} 16. g4 {[%emt 0:07:45]} Rg8 {[%emt 0:08:04]} 17. gxf5 {[%emt 0:07:33]} Nxf5 {[%emt 0:00:18]} 18. a3 {[%emt 0:10:06]} Bf8 {[%emt 0:02:25]} 19. e4 {[%emt 0:04:21]} Nh4 {[%emt 0:05:43]} 20. Qe3 {[%emt 0:00:56]} Re8 {[%emt 0:02:33]} 21. Qd2 {[%emt 0:06:24]} dxe4 {[%emt 0:01:18]} 22. Nxe4 {[%emt 0:00:44]} Qf7 {[%emt 0:02:09]} 23. Qa5 {[%emt 0:02:52]} Bc4 {[%emt 0:04:56]} 24. Bxc4 {[%emt 0:04:36]} Qxc4 {[%emt 0:00:09]} 25. N2g3 {[%emt 0:01:02]} Rg6 {[%emt 0:03:10]} 26. Rd3 {[%emt 0:01:03]} Qb5 {[%emt 0:00:55]} 27. Qd2 {[%emt 0:02:25]} Bxh6 {[%emt 0:02:13]} 28. Kb1 {[%emt 0:00:00]} f5 {[%emt 0:03:55]} 29. Nc5 {[%emt 0:01:21]} Rd6 {[%emt 0:03:01]} 30. Re1 {[%emt 0:01:07]} g4 {[%emt 0:00:41]} 31. Qd1 {[%emt 0:01:03]} b6 {[%emt 0:09:08]} 32. Rxe8+ {[%emt 0:01:44]} Qxe8 {[%emt 0:00:07]} 33. Qh1 {[%emt 0:00:57]} bxc5 {[%emt 0:00:20]} 34. Qxh4 {[%emt 0:00:10]} Qe1+ {[%emt 0:01:13]} 35. Ka2 {[%emt 0:00:01]} cxd4 {[%emt 0:01:31]} 36. Qh5 {[%emt 0:00:29]} Qe6+ {[%emt 0:00:21]} 37. Kb1 {[%emt 0:01:05]} Rd5 {[%emt 0:00:18]} 38. Qh1 {[%emt 0:00:41]} f4 {[%emt 0:02:11]} 39. Ne2 {[%emt 0:00:31]} c5 {[%emt 0:02:40]} 40. Nc3 {[%emt 0:00:14]} Re5 {[%emt 0:00:21]} 41. Qa8+ {[%emt 0:50:36]} Kd7 {[%emt 0:58:36]} 42. b3 {[%emt 0:00:41]} Ke7 {[%emt 0:02:08]} 43. Na4 {[%emt 0:00:00]} Kf6 {[%emt 0:00:00]} 44. Qa7 {[%emt 0:00:00]} Bf8 {[%emt 0:00:00]} 45. Qxh7 {[%emt 0:00:00]} Bg7 {[%emt 0:00:00]} 46. f3 {[%emt 0:00:00]} Qf5 {[%emt 0:00:00]} 47. Qh4+ {[%emt 0:00:00]} Qg5 {[%emt 0:00:00]} 48. Qxg4 {[%emt 0:00:00]} Qxg4 {[%emt 0:00:00]} 49. fxg4 {[%emt 0:00:00]} Kg5 {[%emt 0:00:00]} 50. Rd1 {[%emt 0:00:00]} f3 {[%emt 0:00:00]} 51. Nb2 {[%emt 0:00:00]} Bf8 {[%emt 0:00:00]} 52. Nd3 {[%emt 0:00:00]} Re2 {[%emt 0:00:00]} 53. Rg1 {[%emt 0:00:45]} Bd6 {[%emt 0:00:00]} 54. Kc1 {[%emt 0:01:33]} Bf4+ {[%emt 0:00:00]} 55. Kb2 {[%emt 0:00:49]} f2 {[%emt 0:00:00]} 56. Rf1 {[%emt 0:02:53]} Bg3 {[%emt 0:00:00]} 57. Nxc5 {[%emt 0:01:33]} Re1 {[%emt 0:00:00]} 58. Rxf2 {[%emt 0:00:18]} Bxf2 {[%emt 0:00:00]} 59. Nxa6 {[%emt 0:00:14]} d3 {[%emt 0:00:00]} 60. cxd3 {[%emt 0:00:04]} Bd4+ {[%emt 0:00:00]} 61. Kc2 {[%emt 0:15:04]} Re2+ {[%emt 0:00:30]} 0-1